Cogmind - Beta 17 @@@ ROGUE MODE // 2026.08.10 @ 18:21:57 Player: Conwew Result: Destroyed by Y-45 Defender with Heavy Assault Rifle Performance ------------- Evolutions (0) 0 Regions Visited (4) 800 Robots Destroyed (4) 20 Value Destroyed (162) 162 Prototype IDs (0) 0 Alien Tech Used (0) 0 Bonus (58) 58 TOTAL SCORE: 1040 Bonus ------- Follower Combat Kills 58 Cogmind --------- Core Integrity 0/250 Matter 247/300 Energy 160/160 System Corruption 0% Temperature Cool (0) Movement Walking (120) Location -9/Recycling Parts ------- > --- POWER (1) -------- Light Nuclear Core > --- PROPULSION (2) --- Aluminum Leg Aluminum Leg > --- UTILITY (2) ------ Heat Sink > --- WEAPON (2) ------- Slug Cannon > --- INVENTORY (5) ---- Signal Interpreter Grenade Launcher Peak State ------------ > --- POWER ------------ Light Nuclear Core > --- PROPULSION ------- Aluminum Leg Aluminum Leg > --- UTILITY ---------- Heat Sink > --- WEAPON ----------- Slug Cannon > --- INVENTORY -------- Signal Interpreter Grenade Launcher [Rating: 10] Favorites ----------- Power Ion Engine Engine Ion Engine Power Core Light Nuclear Core Propulsion Aluminum Leg Leg Aluminum Leg Utility Heat Sink Device Heat Sink Weapon Assault Rifle Energy Gun Small Laser Ballistic Gun Assault Rifle Ballistic Cannon Slug Cannon Launcher Grenade Launcher Build | -11 -10 -10 -10 -9 ------- Run | Yrd Mat Min Sub Rec Slots Evolved . | . . . . . Power . | . . . . . Propulsion . | . . . . . Utility . | . . . . . Weapon . | . . . . . Parts Attached 12 | 5 1 1 5 . Power 2 | 1 . . 1 . Engine 1 | 1 . . . . Core 1 | . . . 1 . Reactor . | . . . . . Propulsion 5 | 2 . 1 2 . Treads . | . . . . . Leg 5 | 2 . 1 2 . Wheel . | . . . . . Hover . | . . . . . Flight . | . . . . . Utility 1 | . 1 . . . Device 1 | . 1 . . . Storage . | . . . . . Processor . | . . . . . Hackware . | . . . . . Protection . | . . . . . Artifact . | . . . . . Weapon 4 | 2 . . 2 . Energy Gun 1 | 1 . . . . Energy Cannon . | . . . . . Ballistic Gun 1 | 1 . . . . Ballistic Cannon 1 | . . . 1 . Launcher 1 | . . . 1 . Special Weapon . | . . . . . Impact Weapon . | . . . . . Slashing Weapon . | . . . . . Piercing Weapon . | . . . . . Special Melee Weapon . | . . . . . Unidentified Prototypes . | . . . . . Parts Lost 2 | . . . 2 . Power 1 | . . . 1 . Propulsion . | . . . . . Utility . | . . . . . Weapon 1 | . . . 1 . Highest Loss Streak 1 | . . . 1 . To Critical Strikes . | . . . . . Average Backups 4 | . 3 5 4 2 Power . | . . 1 . . Propulsion 1 | . 1 2 1 . Utility . | . . 1 1 1 Weapon . | . . 1 1 1 Tool/Special . | . . . . . Unused Backups 1 | . . . . 1 Power . | . . . . . Propulsion . | . . . . . Utility 1 | . . . . 1 Weapon . | . . . . . Tool/Special . | . . . . . Average Slot Usage (%) 73 | . 76 85 63 71 Engine 11 | . 14 14 8 . Leg 24 | . 28 28 18 28 Device 10 | . 5 14 14 14 Energy Gun 11 | . 14 14 8 . Ballistic Gun 12 | . 14 14 10 . Peak Build Rating 10 | 5 6 6 10 10 Average Rating 5 | 3 5 6 4 10 On Entrance 5 | . 5 6 6 10 Avg Prop Armor Cover (%) . | . . . . . Naked Turns . | . . . . . Heaviest Build 13 | 8 9 9 13 13 Greatest Support 20 | 20 20 20 20 20 Greatest Overweight (x) 1 | 1 . . 1 . Average Overweight (x) . | . . . . . Largest Inventory Capacity 5 | 5 5 5 5 5 Average Capacity 5 | 5 5 5 5 5 Most Carried 5 | . 5 5 5 2 Average Carried 4 | . 3 5 4 2 Final Capacity 5 | 5 5 5 5 5 Final Carried 5 | . 5 5 2 2 Class Distribution -------------------- 100% | Mutant Dominant Class ---------------- Mutant | -10/Materials Mutant | -10/Mines Mutant | -10/Subcaves Mutant | -9/Recycling Resources | -11 -10 -10 -10 -9 ----------- Run | Yrd Mat Min Sub Rec Matter Collected 323 | 250 34 30 9 . Remotely . | . . . . . Salvage Created 178 | . 85 93 . . Parts 9 | . 3 6 . . Haulers Intercepted . | . . . . . Recyclers Shooed . | . . . . . Parts Field Recycled . | . . . . . Retrieved Matter . | . . . . . Parts Self-Destructed 4 | . . . 4 . Prevented . | . . . . . Parts Restored . | . . . . . Kills | -11 -10 -10 -10 -9 ------- Run | Yrd Mat Min Sub Rec Combat Hostiles Destroyed 4 | . 2 2 . . Guns 4 | . 2 2 . . Classes Destroyed 1 | . 1 . . . Grunt 4 | . 2 2 . . Best Kill Streak 2 | . 2 2 . . Combat Bots Only 2 | . 2 2 . . Max Kills in Single Turn 1 | . 1 1 . . Gunslinging . | . . . . . Exploded . | . . . . . Melee . | . . . . . Uniques/NPCs Destroyed . | . . . . . Combat | -11 -10 -10 -10 -9 -------- Run | Yrd Mat Min Sub Rec Hostile Shots Fired 76 | . 13 7 54 2 Missed 25 | . 4 3 17 1 Hits 51 | . 9 4 37 1 Projectile 51 | . 9 4 37 1 Critical Strikes 1 | . . . 1 . Damage Taken 737 | . 124 50 551 12 Core 259 | . 40 28 179 12 Absorbed by Shields . | . . . . . Core Remaining (%) 100 | 100 . . . . Volleys Fired 25 | . 11 5 9 . Largest 2 | . 2 2 2 . Hottest 60 | . 60 60 60 . Shots Fired 44 | . 21 10 13 . Gun 40 | . 21 10 9 . Cannon 2 | . . . 2 . Launcher 2 | . . . 2 . Special . | . . . . . Kinetic 23 | . 11 5 7 . Thermal 19 | . 10 5 4 . Explosive 2 | . . . 2 . Electromagnetic . | . . . . . Robot Hit Streak 5 | . 5 3 4 . Robot Miss Streak 4 | . 2 4 2 . Penetration Max . | . . . . . Secondary Targets . | . . . . . Shots Hit Robots 24 | . 13 6 5 . Core Hits 13 | . 5 5 3 . Critical Kills . | . . . . . Critical Parts Destroyed . | . . . . . Critical Strikes . | . . . . . Melee Attacks . | . . . . . Impact . | . . . . . Slashing . | . . . . . Piercing . | . . . . . Sneak Attacks . | . . . . . Combat Hostiles . | . . . . . Follow-up Attacks . | . . . . . Damage Inflicted 269 | . 145 75 49 . Guns 254 | . 143 75 36 . Cannons . | . . . . . Explosions . | . . . . . Melee . | . . . . . Ramming 15 | . 2 . 13 . Kinetic 134 | . 78 31 25 . Thermal 120 | . 65 44 11 . Explosive . | . . . . . Electromagnetic . | . . . . . Impact . | . . . . . Slashing . | . . . . . Piercing . | . . . . . Highest Corruption . | . . . . . Average Corruption . | . . . . . Corruption Purged . | . . . . . Corruption Blocked . | . . . . . Overload Shots . | . . . . . Overflow Damage . | . . . . . Projectiles . | . . . . . Explosions . | . . . . . Melee . | . . . . . Knockbacks . | . . . . . Impact . | . . . . . Kinetic . | . . . . . Secondary . | . . . . . Self-Inflicted Damage . | . . . . . Shots . | . . . . . Rammed . | . . . . . Targets Rammed 8 | . 1 . 7 . Kicked 8 | . 1 . 7 . Crushed . | . . . . . Highest Temperature 57 | . 57 5 . . Average Temperature 32 | . 33 5 . . Received Heat Transfer 168 | . 69 27 72 . Siege Activations . | . . . . . Martial Activations . | . . . . . Shielding Activations . | . . . . . Robots Disrupted . | . . . . . Combat Hostiles . | . . . . . Robots Corrupted . | . . . . . Combat Hostiles . | . . . . . Parts Fried . | . . . . . Impact Corruptions . | . . . . . Robots Melted . | . . . . . Combat Hostiles . | . . . . . Parts Melted . | . . . . . Heat Transferred 275 | . 150 100 25 . Parts Sabotaged . | . . . . . Parts Stolen . | . . . . . Parts Stripped . | . . . . . Power Chain Reactions . | . . . . . Alert | -11 -10 -10 -10 -9 ------- Run | Yrd Mat Min Sub Rec Maximum Alert Level . | . . . . . Low Security (%) 100 | 100 100 100 . 100 Level 1 . | . . . . . Level 2 . | . . . . . Level 3 . | . . . . . Level 4 . | . . . . . Level 5 . | . . . . . High Security . | . . . . . Max Security . | . . . . . Peak Influence 50 | . 40 50 . 24 Initial 2 | . . . . 2 Average 6 | . 5 8 . 2 Influence Increases 191 | . 57 50 15 69 Destroy 0b10 Robot/C 120 | . 40 40 . 40 Destroy 0b10 Robot/NC 15 | . . . . 15 Destroy Leader 20 | . 10 10 . . Allied During Kill 2 | . . . . 2 Successful Hack 7 | . 7 . . . Destroy Structure 12 | . . . . 12 Lose Combat Pursuer 15 | . . . 15 . Influence Decreases 152 | . 57 50 10 35 Entered New Map 3 | . . . . 3 Time Decay 129 | . 57 50 10 12 Lost Ally 20 | . . . . 20 Squads Dispatched 2 | . 2 . . . Investigation . | . . . . . Extermination . | . . . . . Reinforcement 2 | . 2 . . . Assault . | . . . . . Garrison . | . . . . . Intercept . | . . . . . Searches Triggered . | . . . . . Construction Impeded . | . . . . . Haulers Reinforced . | . . . . . Active Scanning Responses . | . . . . . Cargo Convoy Interrupts . | . . . . . Stealth | -11 -10 -10 -10 -9 --------- Run | Yrd Mat Min Sub Rec Distress Signals . | . . . . . Communications Jammed . | . . . . . Distress Signals . | . . . . . Times Spotted 26 | . 6 2 15 3 Peak Tracking Total 9 | . 3 2 9 2 Tactical Retreats 3 | . . . 3 . Traps | -11 -10 -10 -10 -9 ------- Run | Yrd Mat Min Sub Rec Traps Triggered . | . . . . . Indirectly . | . . . . . Trap Hack Attempts . | . . . . . Triggered . | . . . . . Disarmed . | . . . . . Reprogrammed . | . . . . . Reused . | . . . . . Traps Extracted . | . . . . . Installed . | . . . . . Triggered . | . . . . . Machines | -11 -10 -10 -10 -9 ---------- Run | Yrd Mat Min Sub Rec Machines Disabled . | . . . . . Max in Single Turn . | . . . . . Machines Repaired . | . . . . . Machines Dismantled . | . . . . . Machines Sabotaged . | . . . . . Overloaded Fab Kills . | . . . . . Hacking | -11 -10 -10 -10 -9 --------- Run | Yrd Mat Min Sub Rec Machines Accessed 3 | . 3 . . . Terminals 3 | . 3 . . . Fabricators . | . . . . . Repair Stations . | . . . . . Recycling Units . | . . . . . Scanalyzers . | . . . . . Garrison Access . | . . . . . Total Hacks 8 | . 8 . . . Successful 5 | . 5 . . . Failed 3 | . 3 . . . Catastrophic 1 | . 1 . . . Database Lockouts . | . . . . . Manual 5 | . 5 . . . Terminals 8 | . 8 . . . Fabricators . | . . . . . Repair Stations . | . . . . . Recycling Units . | . . . . . Scanalyzers . | . . . . . Garrison Access . | . . . . . Terminal Hacks 2 | . 2 . . . Locate Traps 2 | . 2 . . . Fabricator Hacks . | . . . . . Repair Station Hacks . | . . . . . Recycling Unit Hacks . | . . . . . Scanalyzer . | . . . . . Garrison Access Hacks . | . . . . . Unauthorized Hacks 3 | . 3 . . . Terminals 3 | . 3 . . . Track 2 | . 2 . . . Botnet 1 | . 1 . . . Fabricators . | . . . . . Repair Stations . | . . . . . Recycling Units . | . . . . . Scanalyzers . | . . . . . Garrison Access . | . . . . . Data Cores Recovered . | . . . . . Used . | . . . . . Hacking Detections 2 | . 2 . . . Full Trace Events . | . . . . . Feedback Events . | . . . . . Feedback Blocked . | . . . . . Robot Schematics Acquired . | . . . . . Robots Built . | . . . . . Authchips . | . . . . . Time . | . . . . . Total Robot Build Rating . | . . . . . Part Schematics Acquired . | . . . . . Parts Built . | . . . . . Authchips . | . . . . . Time . | . . . . . Total Part Build Rating . | . . . . . Part Studies Acquired . | . . . . . Parts Repaired . | . . . . . Time . | . . . . . Parts Recycled . | . . . . . Recycled Matter . | . . . . . Retrieved Matter . | . . . . . Retrieved Components . | . . . . . Parts Scanalyzed . | . . . . . Part Schematics Acquired . | . . . . . Parts Damaged . | . . . . . Bothacking | -11 -10 -10 -10 -9 ------------ Run | Yrd Mat Min Sub Rec Used RIF Installer . | . . . . . Robots Hacked . | . . . . . Non-combat . | . . . . . Combat . | . . . . . Robot Hacks Applied . | . . . . . Relay Couplers Released . | . . . . . Fabnet Peak Effective % . | . . . . . Robots Rewired 2 | . . . . 2 Allies Hacked . | . . . . . Hacks Repelled . | . . . . . Allies | -11 -10 -10 -10 -9 -------- Run | Yrd Mat Min Sub Rec Total Allies 2 | . . . . 2 Largest Group 1 | . . . . 1 Highest-Rated Group 34 | . . . . 34 Highest-Rated Ally 34 | . . . . 34 Total Orders . | . . . . . Ally Attacks 2 | . . . . 2 Total Damage 189 | . . . . 189 Kills 3 | . . . . 3 Allies Corrupted . | . . . . . Allies Melted . | . . . . . Intel | -11 -10 -10 -10 -9 ------- Run | Yrd Mat Min Sub Rec Active Infowar (turns) . | . . . . . Robot Analysis Total . | . . . . . Derelict Logs Recovered 2 | . . 1 1 . Drone Launches . | . . . . . Drone Recoveries . | . . . . . Exploration | -11 -10 -10 -10 -9 ------------- Run | Yrd Mat Min Sub Rec Turns Passed 1051 | 46 349 270 345 41 Spaces Moved 792 | 35 230 163 333 31 Core 181 | 7 . . 174 . Treads . | . . . . . Legs 611 | 28 230 163 159 31 Wheels . | . . . . . Hover . | . . . . . Flight . | . . . . . Fastest Speed 50 | 50 120 120 50 120 Average Speed 105 | 113 120 120 87 120 Slowest Speed 120 | 120 120 120 120 120 Overloaded Moves . | . . . . . Propulsion Burnouts . | . . . . . Robots Hopped . | . . . . . Potential Cave-ins . | . . . . . Cave-ins Triggered . | . . . . . Exploration Rate (%) 24 | 3 42 38 30 7 Regions Visited 4 Branch Regions 3 Pre-discovered Areas . | . . . . . Known Exits Taken 1 | . . . 1 . Unknown Exits Taken 3 | 1 1 1 . . Scrap Searched . | . . . . . Spaces Dug 1 | . . . 1 . Terrain Destroyed 15 | . . . 15 . Melee . | . . . . . Projectile 1 | . . . 1 . AOE 14 | . . . 14 . Terrain Rammed . | . . . . . Walls Destroyed . | . . . . . Machines Disabled . | . . . . . Actions | -11 -10 -10 -10 -9 --------- Run | Yrd Mat Min Sub Rec Total 958 | 39 281 228 375 35 Wait 111 | . 34 59 18 . Move 788 | 34 229 162 332 31 Hop . | . . . . . Pick Up 6 | . 5 . 1 . Fast Attach 6 | 5 1 . . . Attach 4 | . . . 4 . Detach . | . . . . . Swap 2 | . . 1 1 . Drop 4 | . . 1 3 . Fire 25 | . 11 5 9 . Melee . | . . . . . Ram . | . . . . . Kick 8 | . 1 . 7 . Crush . | . . . . . Escape Stasis . | . . . . . Rewire 4 | . . . . 4 Trap . | . . . . . Miscellaneous . | . . . . . Route ------- -11/Scrapyard -10/Materials -10/Mines (discovered 2 exits: [*Mat] / [*Sub]) -10/Subcaves -9/Recycling History --------- Turn | Location | Event 6 | -11/Scrapyard | Discovered new exit (range 15) 47 | -11/Scrapyard | Entered Materials 305 | -10/Materials | Build established: Mutant 332 | -10/Materials | Discovered new exit (range 12) 396 | -10/Materials | Entered Mines 520 | -10/Mines | Discovered new exit (range 5) 656 | -10/Mines | Discovered new exit (range 7) 666 | -10/Mines | Entered Subcaves 669 | -10/Subcaves | Identified exit to Recycling 876 | -10/Subcaves | Core integrity fell below 50% 931 | -10/Subcaves | Core integrity fell below 20% 956 | -10/Subcaves | Shifting Twisted Machinery released Riot Gun 963 | -10/Subcaves | Shifting Twisted Machinery released Slug Cannon 1011 | -10/Subcaves | Entered Recycling 1052 | -9/Recycling | Destroyed by Y-45 Defender with Heavy Assault Rifle Last Messages --------------- Slug penetrates Wall. The unstable cave ceiling collapses. Kicked S-10 Pest. The unstable cave ceiling collapses. Kicked S-10 Pest. Kicked S-10 Pest out of the way. LOCATION=RECYCLING GOAL=ESCAPE Attempting to rewire D-53 Grenadier. D-53 Grenadier rewired. Attempting to rewire Y-45 Defender. Y-45 Defender rewired. G-34 Mercenary springs to life. Y-45 Defender springs to life. Defender 2a destroyed. Y-45 Defender springs to life. G-34 Mercenary destroyed. A-02 Transporter destroyed. Y-45 Defender destroyed. Grenadier 2a destroyed. Map ----- +----------------------------------------------------+ | ?????????????????????????????????????????????????? | | ?????????????????????????????????????????????????? | | ?????????????????????????????????????????????????? | | ?????????????????????????????????????????????????? | | ?????????????????????????????????????????????????? | | ?????????????????????????????????????????????????? | | ?????????????????????????????????????????????????? | | ?????????????????????????????????????????????????? | | ?????????????????????????????????????????????????? | | ?????????????????????????????????????????????????? | | ????????????????????????????######+###???????????? | | ????????????????????????????# #???????????? | | ????????????????????????????# "" #???????????? | | ????????????????????????????# Y" #???????????? | | ????????????????????????????# "" #???????????? | | ????????????????????????????# #???????????? | | ????????????????????????????# """ #???????????? | | ????????????????????????????# """ #???????????? | | ????????????????????????????# """ #???????????? | | ????????????????????????????# #???????????? | | ????????????????#######+######+##+######?????????? | | ??????????????? #?????????? | | ??????????????? #?????????? | | ??????????????? #?????????? | | ????????????????############# # #####?????????? | | ??????????????????????# d@ [% % s #?????????? | | ??????????????????????# Y !%* % % %t +?????????? | | ??????????????????????#[ gY !% = [r #?????????? | | ??????????????????????# [Y ![]= = #?????????? | | ??????????????????????#g*% [ ]% l g#?????????? | | ??????????????????????###### #####?????????? | | ????????????????????????????### ##?????????????? | | ????????????????????????????????###??????????????? | | | | | | | | | | | | | | | | | | | | | | | | | | | | | | | | | | | +----------------------------------------------------+ Best States ------------- Heat Dissipation 35 Energy Generation 14 Energy Capacity 250 Matter Stores 300 Matter Capacity 300 Sight Range 16 Terrain Scan Density 10 Evasion (%) 55 Item Schematics ----------------- None Robot Schematics ------------------ None Fabricated ------------ Nothing Repaired ---------- Nothing Studied --------- None Alien Tech Used ----------------- None Achievements -------------- None Challenges ------------ None Game ------ Seed CompanionGuidanceSpoofer Manual? 0 Play Time 00:07:43 Cumulative 73.5 hours Start 2026.08.10 @ 18:14:42 End 2026.08.10 @ 18:21:57 Sessions 1 Manual Loads 0 Difficulty Rogue Special Mode None Game No. 81 Rogue 81 Adventurer 0 Explorer 0 Win Type - Total 1 Types 1/0/0/0/0/0/0/0/0/0 Lore% 68 Gallery% 47 Achievement% 42 Wizard Run 0 Options --------- Layout 1 ASCII 0 Keyboard 0 Movement Mouse Keybinds 0 Fullscreen 1 Font 24/X11 Map View 50x35 Zoom Use 0% Tactical HUD 0 Map Filters NONE Filters NONE Steam 1 RUN: cc03c058-29b5-47d4-adc6-2c0be4bca000